bitfinex/quotes_SOLUSD_20230112
["timestamp","ask_amount","ask_price","bid_price","bid_amount"]
[1673554317656,20.0,16.45,16.432,82.53]
[1673554317657,45.61,16.447,16.432,82.53]
[1673554317862,45.6,16.449,16.432,82.53]
[1673554318104,45.6,16.45,16.433,20.0]
[1673554318287,45.6,16.45,16.434,82.53]
[1673554318740,20.0,16.449,16.434,82.53]
[1673554319047,20.0,16.447,16.434,37.0]
[1673554319477,0.96,16.446,16.434,37.0]
[1673554319654,0.96,16.446,16.434,20.0]
[1673554319867,45.61,16.445,16.425,42.24]
[1673554320077,20.0,16.444,16.422,20.0]
[1673554320291,45.62,16.443,16.423,39.21]
[1673554320519,0.96,16.442,16.423,39.21]
[1673554320729,45.62,16.441,16.423,39.21]
[1673554320923,0.96,16.44,16.423,39.21]
[1673554321129,45.63,16.439,16.423,39.21]
[1673554321569,0.96,16.44,16.423,39.21]
[1673554321999,45.62,16.441,16.429,17.0]
[1673554322186,45.62,16.442,16.429,17.0]
[1673554322725,45.61,16.447,16.429,17.0]
[1673554322931,45.6,16.448,16.431,20.0]
[1673554323253,45.6,16.45,16.432,67.09]
[1673554324089,45.6,16.45,16.433,20.0]
[1673554324307,45.6,16.45,16.434,68.67]
[1673554324507,45.6,16.451,16.435,20.0]
[1673554324831,45.6,16.451,16.44,25.28]
[1673554325141,98.62626338,16.452,16.441,68.86]
[1673554325360,98.62626338,16.452,16.441,87.61725104]
[1673554325670,98.62626338,16.452,16.442,18.75725104]
[1673554325877,98.62626338,16.452,16.443,50.11]
[1673554326094,98.62626338,16.452,16.444,40.0]
[1673554326282,98.62626338,16.452,16.445,17.0]
[1673554326490,98.62626338,16.452,16.445,35.75725104]
[1673554326699,98.62626338,16.452,16.446,57.49]
[1673554326911,98.62626338,16.452,16.448,20.0]
[1673554327142,98.62626338,16.452,16.449,17.0]
[1673554327882,27.73863657,16.452,16.449,17.0]
[1673554328079,27.73863657,16.452,16.449,35.75725104]
[1673554328402,0.00863657,16.452,16.449,17.0]
[1673554328618,45.55,16.467,16.45,101.71725104]
[1673554328823,45.55,16.467,16.451,17.0]
[1673554329037,45.55,16.467,16.452,64.72]
[1673554329262,45.55,16.467,16.453,17.0]
[1673554329439,20.0,16.469,16.454,20.0]
[1673554329440,45.55,16.468,16.454,20.0]
[1673554329783,45.55,16.468,16.455,17.0]
[1673554329958,20.0,16.467,16.456,20.0]
[1673554330176,20.0,16.467,16.454,20.0]
[1673554330385,45.55,16.466,16.454,20.0]
[1673554330594,45.55,16.466,16.451,20.0]
[1673554330931,20.0,16.465,16.444,45.34]
[1673554331144,46.52,16.464,16.444,45.34]
[1673554331348,20.0,16.463,16.441,42.21]
[1673554331540,46.52,16.462,16.444,18.75725104]
[1673554331762,46.52,16.462,16.448,18.75725104]
[1673554332396,0.96,16.462,16.448,18.75725104]
[1673554332603,0.96,16.463,16.448,58.01725104]
[1673554332814,45.56,16.464,16.449,37.0]
[1673554333031,45.55,16.467,16.45,56.73]
[1673554333234,45.55,16.467,16.451,37.0]
[1673554333443,45.55,16.467,16.452,20.0]
[1673554333650,45.55,16.467,16.452,38.75725104]
[1673554333859,45.55,16.467,16.453,37.0]
[1673554334070,45.55,16.469,16.454,20.0]
[1673554334280,45.55,16.469,16.455,17.0]
[1673554334486,45.55,16.469,16.456,20.0]
[1673554334697,45.55,16.469,16.457,17.0]
[1673554334910,45.55,16.469,16.457,35.75725104]
[1673554335343,45.55,16.469,16.457,17.0]
[1673554335957,113.2112,16.47,16.457,17.0]
[1673554336798,113.2112,16.47,16.458,20.0]
[1673554337009,113.2112,16.47,16.459,17.0]
[1673554338174,0.96,16.469,16.457,18.75725104]
[1673554338686,46.51,16.469,16.457,18.75725104]
[1673554338898,46.51,16.469,16.456,20.0]
[1673554339108,46.51,16.469,16.455,20.0]
[1673554339653,46.51,16.469,16.456,17.0]
[1673554339845,46.51,16.469,16.457,20.0]
[1673554340053,46.51,16.469,16.455,20.0]
[1673554341018,46.51,16.469,16.456,15.54]
[1673554341213,0.96,16.469,16.457,20.0]
[1673554341629,45.53,16.473,16.46,23.46]
[1673554341839,165.1905,16.478,16.462,20.0]
[1673554342055,45.52,16.478,16.463,17.0]
[1673554342269,45.52,16.478,16.463,37.0]
[1673554342480,45.52,16.478,16.464,20.0]
[1673554342908,45.52,16.478,16.465,17.0]
[1673554343122,45.52,16.478,16.466,20.0]
[1673554343311,45.52,16.478,16.467,17.0]
[1673554343733,45.52,16.478,16.468,20.0]
[1673554344472,224.92,16.478,16.456,15.64]
[1673554344786,60.0,16.467,16.454,15.65]
[1673554345207,60.0,16.467,16.455,18.75725104]
[1673554345441,60.0,16.467,16.456,20.0]
[1673554345945,60.0,16.467,16.458,20.0]
[1673554346145,60.0,16.467,16.459,17.0]
[1673554346569,60.0,16.467,16.456,22.44]
[1673554346789,60.0,16.467,16.454,22.44]
[1673554347416,60.0,16.467,16.452,136.128]
[1673554347627,0.96,16.466,16.452,136.128]
[1673554347830,0.96,16.466,16.454,17.0]
[1673554348269,0.96,16.466,16.455,38.75725104]
[1673554348481,60.0,16.467,16.46,117.16]
[1673554348690,60.0,16.467,16.461,42.02]
[1673554348904,60.0,16.467,16.462,20.0]
[1673554349110,60.0,16.467,16.463,37.0]
[1673554349303,60.0,16.467,16.461,17.0]
[1673554349514,60.0,16.467,16.464,17.0]
[1673554349737,60.0,16.467,16.465,20.0]
[1673554350069,60.0,16.467,16.454,25.3]
[1673554350384,46.51,16.466,16.454,18.75725104]
[1673554351315,46.51,16.466,16.455,20.0]
[1673554351857,46.51,16.466,16.456,17.0]
[1673554352052,46.51,16.466,16.457,20.0]
[1673554352241,46.51,16.466,16.455,20.0]
[1673554352668,20.0,16.465,16.451,38.75725104]
[1673554352883,45.56,16.464,16.451,38.75725104]
[1673554353093,0.96,16.463,16.451,38.75725104]
[1673554353322,45.56,16.462,16.451,38.75725104]
[1673554353640,0.96,16.461,16.451,38.75725104]
[1673554354249,45.56,16.462,16.451,20.0]
[1673554354480,0.96,16.461,16.451,20.0]
[1673554354886,0.96,16.462,16.451,20.0]
[1673554355732,0.96,16.463,16.452,17.0]
[1673554355948,45.55,16.468,16.452,17.0]
[1673554356257,45.55,16.469,16.453,40.67725104]
[1673554356469,45.55,16.469,16.454,30.08]
[1673554356674,20.0,16.474,16.46,23.32]
[1673554356675,45.53,16.474,16.46,23.32]
[1673554356872,45.52,16.477,16.461,31.63]
[1673554357088,45.52,16.477,16.462,20.0]
[1673554357299,45.52,16.477,16.463,52.85]
[1673554357520,45.52,16.477,16.464,20.0]
[1673554357731,45.52,16.477,16.465,20.0]
[1673554358052,45.52,16.477,16.465,17.0]
[1673554358244,45.52,16.477,16.466,20.0]
[1673554358455,45.52,16.477,16.466,37.0]
[1673554359524,20.0,16.476,16.466,37.0]
[1673554359720,20.0,16.476,16.466,20.0]
[1673554359925,45.53,16.475,16.466,20.0]
[1673554360158,45.53,16.475,16.461,38.75725104]
[1673554360368,20.0,16.474,16.462,17.0]
[1673554360575,45.53,16.473,16.463,20.0]
[1673554360770,45.53,16.473,16.464,17.0]
[1673554360981,45.53,16.473,16.465,20.0]
[1673554362576,45.53,16.475,16.466,17.0]
[1673554362766,45.53,16.475,16.466,37.0]
[1673554365622,20.0,16.477,16.466,55.75725104]
[1673554365623,45.52,16.477,16.466,55.75725104]
[1673554365820,2.61,16.467,16.466,55.75725104]
[1673554366026,45.52,16.477,16.467,20.0]
[1673554366245,45.52,16.478,16.468,37.0]
[1673554367418,45.52,16.478,16.468,20.0]
[1673554367618,20.0,16.477,16.467,20.0]
[1673554367935,45.53,16.476,16.464,20.0]
[1673554368123,0.96,16.475,16.464,20.0]
[1673554368754,0.96,16.475,16.465,17.0]
[1673554368965,45.53,16.476,16.466,20.0]
[1673554369284,0.96,16.475,16.466,20.0]
[1673554369507,20.96,16.475,16.466,20.0]
[1673554369912,20.0,16.473,16.46,117.44]
[1673554370136,45.54,16.472,16.461,20.0]
[1673554370347,0.96,16.471,16.461,20.0]
[1673554370753,0.96,16.471,16.462,18.75725104]
[1673554370963,20.0,16.473,16.463,17.0]
[1673554371277,45.53,16.474,16.464,20.0]
[1673554371485,45.53,16.474,16.465,17.0]
[1673554371716,45.53,16.474,16.466,20.0]
[1673554372119,45.53,16.474,16.456,20.0]
[1673554372335,17.0,16.473,16.451,108.8983]
[1673554372543,66.5,16.472,16.451,127.65555104]
[1673554372973,66.5,16.472,16.456,20.0]
[1673554373392,66.5,16.472,16.457,18.75725104]
[1673554373594,46.5,16.472,16.458,17.0]
[1673554373922,45.53,16.474,16.459,18.75725104]
[1673554374135,45.53,16.474,16.46,17.0]
[1673554374537,45.53,16.474,16.461,18.75725104]
[1673554374742,45.53,16.474,16.462,17.0]
[1673554375194,0.96,16.473,16.462,17.0]
[1673554375383,45.54,16.472,16.462,17.0]
[1673554375593,0.96,16.471,16.462,17.0]
[1673554375807,45.54,16.47,16.462,17.0]
[1673554376020,0.96,16.471,16.462,17.0]
[1673554377090,0.96,16.471,16.461,18.75725104]
[1673554377264,45.54,16.47,16.461,18.75725104]
[1673554377602,0.96,16.469,16.461,18.75725104]
[1673554377816,45.55,16.468,16.461,18.75725104]
[1673554378235,45.53,16.474,16.462,20.0]
[1673554378428,45.53,16.476,16.462,20.0]
[1673554378637,45.53,16.476,16.463,18.75725104]
[1673554378849,45.53,16.476,16.464,37.0]
[1673554379065,45.52,16.477,16.464,37.0]
[1673554379371,45.52,16.478,16.465,18.75725104]
[1673554379583,0.96,16.477,16.466,37.0]
[1673554380008,0.96,16.477,16.467,18.75725104]
[1673554380231,0.96,16.477,16.468,37.0]
[1673554381805,20.96,16.478,16.468,37.0]
[1673554383291,180.5547,16.479,16.468,37.0]
[1673554384113,180.5547,16.479,16.468,55.75725104]
[1673554384755,0.96,16.478,16.468,55.75725104]
[1673554386234,0.96,16.478,16.468,37.0]
[1673554386420,0.96,16.478,16.469,18.75725104]
[1673554386630,0.96,16.478,16.47,17.0]
[1673554386848,115.0347,16.479,16.47,17.0]
[1673554387063,115.0347,16.479,16.47,35.75725104]
[1673554387798,0.96,16.478,16.47,17.0]
[1673554388205,20.96,16.478,16.468,20.0]
[1673554388444,20.96,16.478,16.465,38.75725104]
[1673554389380,45.52,16.477,16.465,20.0]
[1673554389582,45.52,16.477,16.462,20.0]
[1673554389907,20.0,16.476,16.462,20.0]
[1673554390121,46.49,16.475,16.462,20.0]
[1673554390345,20.0,16.474,16.462,20.0]
[1673554390868,0.96,16.473,16.463,17.0]
[1673554391057,0.96,16.473,16.464,20.0]
[1673554391403,0.96,16.473,16.465,17.0]
[1673554391590,0.96,16.473,16.466,20.0]
[1673554392531,0.96,16.473,16.46,42.44725104]
[1673554392849,20.0,16.472,16.461,18.75725104]
[1673554393057,45.54,16.471,16.461,18.75725104]
[1673554393475,20.0,16.472,16.461,18.75725104]
[1673554394016,20.0,16.472,16.462,17.0]
[1673554394225,45.53,16.473,16.462,17.0]
[1673554394450,45.52,16.477,16.463,18.75725104]
[1673554394659,45.52,16.48,16.464,17.0]
[1673554395048,45.52,16.48,16.465,18.75725104]
[1673554395259,45.52,16.48,16.466,17.0]
[1673554395588,45.52,16.48,16.467,20.0]
[1673554395784,20.96,16.478,16.468,17.0]
[1673554395992,20.0,16.476,16.468,17.0]
[1673554396533,0.96,16.475,16.468,17.0]
[1673554398628,0.96,16.475,16.467,38.75725104]
[1673554398961,0.96,16.475,16.468,17.0]
[1673554400234,65.52,16.478,16.468,17.0]
[1673554400407,45.52,16.48,16.468,54.51450208]
[1673554400741,45.52,16.48,16.468,35.75725104]
[1673554400943,65.51,16.482,16.468,35.75725104]
[1673554401768,45.51,16.482,16.47,25.12]
[1673554401983,45.51,16.483,16.471,17.0]
[1673554402201,45.5,16.486,16.471,35.75725104]
[1673554402411,45.5,16.486,16.472,38.75725104]
[1673554402626,113.2112,16.488,16.48,25.12]
[1673554403670,113.2112,16.488,16.473,126.79305104]
[1673554403994,113.2112,16.488,16.474,55.75725104]
[1673554404311,0.96,16.487,16.475,18.75725104]
[1673554404515,0.96,16.487,16.476,37.0]
[1673554404928,0.96,16.487,16.477,18.75725104]
[1673554405270,0.96,16.487,16.478,37.0]
[1673554406096,113.2112,16.488,16.478,37.0]
[1673554406288,113.2112,16.488,16.48,25.12]
[1673554406521,113.2112,16.488,16.481,17.0]
[1673554407139,45.48,16.493,16.481,17.0]
[1673554407577,45.48,16.494,16.481,17.0]
[1673554407885,45.48,16.494,16.478,20.0]
[1673554408070,45.48,16.494,16.473,108.0358]
[1673554408071,20.0,16.493,16.479,17.0]
[1673554408281,45.48,16.492,16.479,17.0]
[1673554408722,0.96,16.491,16.479,17.0]
[1673554408940,45.49,16.49,16.479,17.0]
[1673554409344,0.96,16.489,16.479,17.0]
[1673554409555,45.49,16.49,16.479,17.0]
[1673554409880,0.96,16.489,16.479,17.0]
[1673554410623,45.47,16.496,16.48,45.12]
[1673554410936,224.85,16.503,16.481,35.75725104]
[1673554411129,161.3338,16.497,16.482,20.0]
[1673554411339,161.3338,16.497,16.482,18.75725104]
[1673554411556,161.3338,16.497,16.47,240.3505]
[1673554411756,340.7338,16.497,16.472,18.75725104]
[1673554411967,340.7338,16.497,16.47,139.8705]
[1673554412199,179.4,16.495,16.47,139.8705]
[1673554412412,179.4,16.493,16.47,139.8705]
[1673554412609,179.4,16.491,16.47,139.8705]
[1673554412823,179.4,16.489,16.47,139.8705]
[1673554413145,20.0,16.487,16.47,158.62775104]
[1673554413457,46.46,16.486,16.47,43.75725104]
[1673554413864,196.4,16.485,16.462,119.1815]
[1673554414081,179.4,16.483,16.46,25.11]
[1673554414290,242.87,16.482,16.46,25.11]
[1673554414511,241.91,16.482,16.461,18.75725104]
[1673554414826,0.96,16.481,16.461,18.75725104]
[1673554415015,20.0,16.479,16.461,18.75725104]
[1673554415225,46.48,16.478,16.462,20.0]
[1673554415562,20.0,16.477,16.462,20.0]
[1673554415760,46.49,16.476,16.462,20.0]
[1673554415962,20.0,16.475,16.462,20.0]
[1673554416280,46.49,16.474,16.462,20.0]
[1673554416489,46.49,16.474,16.463,17.0]
[1673554416701,46.49,16.474,16.455,109.7609]
[1673554416702,20.0,16.473,16.455,109.7609]
[1673554416928,20.0,16.473,16.459,18.75725104]
[1673554416929,45.54,16.472,16.459,18.75725104]
[1673554417455,20.0,16.471,16.459,18.75725104]
[1673554417668,20.0,16.469,16.459,18.75725104]
[1673554417878,0.96,16.468,16.46,17.0]
[1673554419664,0.96,16.468,16.45,125.65]
[1673554419866,46.51,16.468,16.458,18.75725104]
[1673554420189,20.0,16.471,16.46,25.12]
[1673554420399,0.96,16.47,16.46,25.12]
[1673554420615,0.96,16.47,16.461,18.75725104]
[1673554421023,0.96,16.47,16.462,17.0]
[1673554421237,0.96,16.47,16.461,18.75725104]
[1673554421453,45.55,16.469,16.452,86.6909]
[1673554421673,45.55,16.469,16.453,38.75725104]
[1673554421879,0.96,16.468,16.453,38.75725104]
[1673554422084,0.96,16.468,16.454,18.75725104]
[1673554422296,0.96,16.468,16.453,20.0]
[1673554422517,46.51,16.468,16.454,18.75725104]
[1673554422823,20.0,16.467,16.455,20.0]
[1673554423034,65.55,16.467,16.455,20.0]
[1673554423248,0.96,16.466,16.455,20.0]
[1673554425117,0.96,16.466,16.456,35.75725104]
[1673554425332,0.96,16.466,16.456,17.0]
[1673554425542,0.96,16.466,16.457,20.0]
[1673554426723,0.96,16.466,16.454,20.0]
[1673554427031,0.96,16.466,16.455,17.0]
[1673554427249,0.96,16.466,16.456,20.0]
[1673554427855,0.96,16.466,16.457,17.0]
[1673554428190,0.96,16.466,16.458,20.0]
[1673554430074,20.0,16.469,16.458,20.0]
[1673554430292,115.7708,16.47,16.459,17.0]
[1673554430502,65.53,16.476,16.459,17.0]
[1673554430695,20.0,16.476,16.46,18.75725104]
[1673554430909,20.0,16.476,16.461,17.0]
[1673554431336,20.0,16.476,16.462,18.75725104]
[1673554431540,65.53,16.476,16.461,17.0]
[1673554432076,20.0,16.473,16.461,17.0]
[1673554432388,0.96,16.472,16.458,20.0]
[1673554432997,45.54,16.471,16.458,20.0]
[1673554433216,224.94,16.471,16.453,38.75725104]
[1673554433430,133.4614,16.47,16.453,38.75725104]
[1673554433646,20.0,16.468,16.453,38.75725104]
[1673554433863,0.96,16.467,16.453,38.75725104]
[1673554434278,20.0,16.468,16.454,18.75725104]
[1673554434490,20.0,16.468,16.455,20.0]
[1673554435033,45.55,16.467,16.45,25.09]
[1673554435329,20.0,16.468,16.45,144.32725104]
[1673554435753,116.4614,16.47,16.451,20.0]
[1673554435964,179.7389,16.478,16.451,63.11497981]
[1673554436155,179.7389,16.478,16.46,25.12]
[1673554436365,179.7389,16.478,16.461,17.0]
[1673554436575,179.7389,16.478,16.461,35.75725104]
[1673554436907,244.93,16.475,16.452,112.2249]
[1673554437132,244.93,16.475,16.453,37.0]
[1673554437310,46.5,16.472,16.453,37.0]
[1673554437522,20.0,16.471,16.454,18.75725104]
[1673554437731,20.0,16.471,16.455,37.0]
[1673554437943,0.96,16.47,16.455,37.0]
[1673554438472,20.0,16.469,16.455,37.0]
[1673554438692,20.0,16.469,16.455,55.75725104]
[1673554438902,0.96,16.468,16.455,55.75725104]
[1673554439956,0.96,16.468,16.455,20.0]
[1673554440578,46.51,16.468,16.455,20.0]
[1673554440789,20.0,16.467,16.455,20.0]
[1673554440990,118.2922,16.47,16.455,38.75725104]
[1673554441203,118.2922,16.47,16.456,17.0]
[1673554441406,118.2922,16.47,16.457,20.0]
[1673554441622,20.0,16.469,16.457,20.0]
[1673554441838,65.55,16.469,16.457,20.0]
[1673554442057,20.0,16.469,16.457,20.0]
[1673554442270,20.0,16.469,16.43,125.49]
[1673554442271,65.55,16.468,16.43,125.49]
[1673554442455,25.02,16.46,16.432,112.488]
[1673554442675,20.0,16.457,16.432,112.488]
[1673554442879,179.4,16.455,16.432,112.488]
[1673554443090,46.55,16.454,16.432,112.488]
[1673554443300,17.0,16.453,16.43,125.49]
[1673554443632,179.4,16.451,16.43,25.05]
[1673554443843,45.6,16.45,16.43,25.05]
[1673554444167,0.96,16.449,16.43,144.24725104]
[1673554444369,0.96,16.449,16.431,18.75725104]
[1673554444685,0.96,16.449,16.432,20.0]
[1673554444883,0.96,16.449,16.433,17.0]
[1673554445394,0.96,16.449,16.433,35.75725104]
[1673554446252,20.0,16.451,16.433,35.75725104]
[1673554446459,20.0,16.451,16.43,125.49]
[1673554446670,20.0,16.449,16.431,20.0]
[1673554446881,17.96,16.448,16.431,20.0]
[1673554447629,20.0,16.447,16.431,20.0]
[1673554447836,0.96,16.446,16.431,20.0]
[1673554450439,20.0,16.447,16.431,20.0]
[1673554450652,65.6,16.451,16.431,20.0]
[1673554450871,20.0,16.451,16.432,17.0]
[1673554451069,65.6,16.451,16.433,20.0]
[1673554451283,65.6,16.451,16.434,17.0]
[1673554451508,65.6,16.451,16.435,20.0]
[1673554451714,65.6,16.451,16.436,17.0]
[1673554451929,0.96,16.45,16.436,17.0]
[1673554452137,0.96,16.45,16.437,20.0]
[1673554452356,0.96,16.45,16.438,17.0]
[1673554452968,0.96,16.45,16.437,20.0]
[1673554453183,20.0,16.449,16.431,20.0]
[1673554453387,17.96,16.448,16.431,20.0]
[1673554453606,20.0,16.447,16.431,20.0]
[1673554453828,0.96,16.446,16.431,20.0]
[1673554454048,0.96,16.446,16.431,38.75725104]
[1673554454238,0.96,16.446,16.432,17.0]
[1673554454447,0.96,16.446,16.433,20.0]
[1673554454659,0.96,16.446,16.434,17.0]
[1673554454991,0.96,16.446,16.435,20.0]
[1673554455315,0.96,16.446,16.436,17.0]
[1673554455830,0.96,16.446,16.437,20.0]
[1673554456754,0.96,16.446,16.431,20.0]
[1673554457381,17.96,16.446,16.43,25.05]
[1673554457715,179.4,16.444,16.422,115.3883]
[1673554457923,62.62,16.443,16.422,115.3883]
[1673554458119,20.0,16.442,16.422,115.3883]
[1673554458537,0.96,16.441,16.422,115.3883]
[1673554460353,0.96,16.441,16.426,17.0]
[1673554460679,0.96,16.441,16.427,20.0]
[1673554460887,0.96,16.441,16.428,17.0]
[1673554461212,17.96,16.441,16.427,20.0]
[1673554461402,17.96,16.441,16.423,20.0]
[1673554461403,20.0,16.44,16.423,20.0]
[1673554462342,20.0,16.44,16.423,38.75725104]
[1673554462548,20.0,16.44,16.424,17.0]
[1673554462758,20.0,16.44,16.425,20.0]
[1673554462971,20.0,16.44,16.426,17.0]
[1673554463189,20.0,16.44,16.427,20.0]
[1673554463644,20.0,16.44,16.424,20.0]
[1673554463936,20.0,16.44,16.425,17.0]
[1673554464132,20.0,16.44,16.426,20.0]
[1673554464462,20.0,16.44,16.427,17.0]
[1673554464657,20.0,16.44,16.428,20.0]
[1673554464870,20.0,16.459,16.43,125.42]
[1673554465201,20.0,16.459,16.431,150.8486]
[1673554465620,45.59,16.453,16.431,169.60585104]
[1673554467300,199.4,16.448,16.431,20.0]
[1673554467617,0.96,16.447,16.429,20.0]
[1673554467932,0.96,16.447,16.427,20.0]
[1673554468142,45.61,16.446,16.427,20.0]
[1673554468359,20.96,16.445,16.427,20.0]
[1673554469393,20.96,16.445,16.428,17.0]
[1673554469609,20.96,16.445,16.429,20.0]
[1673554469809,20.96,16.445,16.43,17.0]
[1673554470145,20.96,16.445,16.431,20.0]
[1673554470349,20.0,16.448,16.432,17.0]
[1673554470747,20.0,16.448,16.433,20.0]
[1673554470963,20.0,16.448,16.434,17.0]
[1673554471179,20.0,16.451,16.435,20.0]
[1673554471401,20.0,16.451,16.436,17.0]
[1673554471620,20.0,16.451,16.437,20.0]
[1673554471808,20.0,16.451,16.438,17.0]
[1673554472769,0.96,16.45,16.438,17.0]
[1673554474873,20.0,16.451,16.438,17.0]
[1673554475083,117.829,16.452,16.438,17.0]
[1673554475276,65.58,16.455,16.44,25.12]
[1673554475492,45.57,16.46,16.441,37.0]
[1673554475803,45.55,16.468,16.441,37.0]
[1673554476010,179.4,16.467,16.441,55.75725104]
[1673554476343,20.0,16.46,16.441,55.75725104]
[1673554476846,20.0,16.46,16.442,111.8694]
[1673554477056,20.0,16.46,16.443,37.0]
[1673554477822,0.96,16.458,16.443,37.0]
[1673554479365,20.0,16.46,16.443,37.0]
[1673554479578,117.829,16.461,16.45,24.98]
[1673554479905,117.829,16.461,16.451,17.0]
[1673554481179,0.96,16.46,16.451,17.0]
[1673554481598,0.96,16.46,16.45,24.98]
[1673554481807,20.96,16.46,16.45,24.98]
[1673554483377,20.96,16.46,16.451,17.0]
[1673554483615,20.0,16.46,16.451,17.0]
[1673554484655,10.0,16.46,16.451,17.0]
[1673554484857,0.96,16.459,16.451,17.0]
[1673554487701,20.0,16.463,16.451,17.0]
[1673554488016,10.0,16.463,16.451,17.0]
[1673554489153,0.96,16.462,16.451,17.0]
[1673554490827,0.96,16.462,16.452,38.75725104]
[1673554491147,0.96,16.462,16.453,17.0]
[1673554491357,0.96,16.462,16.454,20.0]
[1673554491563,0.96,16.462,16.455,17.0]
[1673554492111,0.96,16.462,16.456,20.0]
[1673554492298,0.96,16.462,16.457,17.0]
[1673554492948,0.96,16.462,16.456,20.0]
[1673554493144,0.96,16.462,16.453,20.0]
[1673554493351,0.96,16.462,16.454,17.0]
[1673554493564,0.96,16.462,16.455,20.0]
[1673554494087,0.96,16.462,16.452,20.0]
[1673554494735,0.96,16.462,16.451,20.0]
[1673554495580,0.96,16.462,16.45,25.05]
[1673554495792,0.96,16.462,16.451,17.0]
[1673554497161,65.55,16.467,16.451,17.0]
[1673554497360,24.99,16.48,16.46,24.98]
[1673554497687,113.5023,16.478,16.452,238.78915104]
[1673554497875,65.52,16.477,16.453,37.0]
[1673554498415,179.4,16.476,16.453,37.0]
[1673554498609,244.93,16.475,16.453,37.0]
[1673554499468,244.93,16.475,16.453,55.75725104]
[1673554500324,65.53,16.475,16.454,0.96]
[1673554500526,65.53,16.475,16.46,25.12]
[1673554500827,244.93,16.475,16.461,17.0]
[1673554501041,244.93,16.475,16.455,18.75725104]
[1673554501261,244.93,16.475,16.456,20.0]
[1673554501651,17.96,16.474,16.457,18.75725104]
[1673554501862,45.53,16.473,16.457,18.75725104]
[1673554502090,45.53,16.474,16.46,25.12]
[1673554502509,45.53,16.474,16.461,17.0]
[1673554502914,45.53,16.474,16.462,18.75725104]
[1673554503123,45.52,16.476,16.463,37.0]
[1673554503557,45.52,16.477,16.464,18.75725104]
[1673554503770,45.52,16.477,16.465,17.0]